Workbook

Sheet Mix
A1: Mix | B1: L15
A2: µi | B2: 1100
A5: # L15 mix u' | E5: CSTable | J5: # l15 mix u'' | N5: CSTable
A6: 1000000 | B6: 1276.546112 | E6: =cstable(A6:A42,B6:B42) -> 1000000 | F6: 1276.546112 | G6: 0 | J6: 1000000 | K6: 44.589843 | N6: =cstable(Mix!J6:J42,Mix!K6:K42) -> 1000000 | O6: 44.589843 | P6: 0
A7: 1100000 | B7: 1243.130737 | E7: 1100000 | F7: 1243.130737 | G7: 7.011267487e-10 | J7: 1100000 | K7: 120.107957 | N7: 1100000 | O7: 120.107957 | P7: -1.689443391e-09
A8: 1210000 | B8: 1212.398781 | E8: 1210000 | F8: 1212.398781 | G8: 3.105523314e-10 | J8: 1210000 | K8: 188.402415 | N8: 1210000 | O8: 188.402415 | P8: -8.760760126e-10
A9: 1331000 | B9: 1183.654659 | E9: 1331000 | F9: 1183.654659 | G9: 2.509175703e-10 | J9: 1331000 | K9: 249.673121 | N9: 1331000 | O9: 249.673121 | P9: -7.962771677e-10
A10: 1464100 | B10: 1156.133454 | E10: 1464100 | F10: 1156.133454 | G10: 1.473321038e-10 | J10: 1464100 | K10: 303.96773 | N10: 1464100 | O10: 303.96773 | P10: -6.01074164e-10
A11: 1610510 | B11: 1128.975603 | E11: 1610510 | F11: 1128.975603 | G11: 8.138746606e-11 | J11: 1610510 | K11: 351.16351 | N11: 1610510 | O11: 351.16351 | P11: -4.878250413e-10
A12: 1771561 | B12: 1100.790849 | E12: 1771561 | F12: 1100.790849 | G12: -5.400812319e-11 | J12: 1771561 | K12: 391.029065 | N12: 1771561 | O12: 391.029065 | P12: -3.783966501e-10
A13: 1948717 | B13: 1068.376392 | E13: 1948717 | F13: 1068.376392 | G13: -1.375757706e-10 | J13: 1948717 | K13: 423.456028 | N13: 1948717 | O13: 423.456028 | P13: -2.959750294e-10
A14: 2143589 | B14: 1027.496996 | E14: 2143589 | F14: 1027.496996 | G14: -2.509044198e-10 | J14: 2143589 | K14: 448.248361 | N14: 2143589 | O14: 448.248361 | P14: -2.445288202e-10
A15: 2357948 | B15: 973.958927 | E15: 2357948 | F15: 973.958927 | G15: -3.608089903e-11 | J15: 2357948 | K15: 465.255127 | N15: 2357948 | O15: 465.255127 | P15: -1.376225907e-10
A16: 2593742 | B16: 914.072226 | E16: 2593742 | F16: 914.072226 | G16: 2.584776995e-10 | J16: 2593742 | K16: 476.802758 | N16: 2593742 | O16: 476.802758 | P16: -2.488156031e-11
A17: 2853117 | B17: 863.164166 | E17: 2853117 | F17: 863.164166 | G17: 3.807943966e-10 | J17: 2853117 | K17: 487.382076 | N17: 2853117 | O17: 487.382076 | P17: 3.075778852e-11
A18: 3138428 | B18: 830.786071 | E18: 3138428 | F18: 830.786071 | G18: 5.208960641e-11 | J18: 3138428 | K18: 499.44849 | N18: 3138428 | O18: 499.44849 | P18: -6.318208905e-11
A19: 3452271 | B19: 802.064909 | E19: 3452271 | F19: 802.064909 | G19: -1.250615477e-10 | J19: 3452271 | K19: 507.438408 | N19: 3452271 | O19: 507.438408 | P19: -1.085473675e-10
A20: 3797498 | B20: 763.569299 | E20: 3797498 | F20: 763.569299 | G20: 8.266610426e-11 | J20: 3797498 | K20: 506.317522 | N20: 3797498 | O20: 506.317522 | P20: -2.699944002e-11
A21: 4177248 | B21: 728.583313 | E21: 4177248 | F21: 728.583313 | G21: 1.042455746e-10 | J21: 4177248 | K21: 500.486681 | N21: 4177248 | O21: 500.486681 | P21: 1.046941344e-11
A22: 4594973 | B22: 702.316949 | E22: 4594973 | F22: 702.316949 | G22: -5.305480193e-11 | J22: 4594973 | K22: 495.285816 | N22: 4594973 | O22: 495.285816 | P22: 2.628201653e-11
A23: 5054470 | B23: 671.144115 | E23: 5054470 | F23: 671.144115 | G23: 4.30161098e-11 | J23: 5054470 | K23: 492.430069 | N23: 5054470 | O23: 492.430069 | P23: -2.844545265e-11
A24: 5559917 | B24: 641.266481 | E24: 5559917 | F24: 641.266481 | G24: -1.238176942e-11 | J24: 5559917 | K24: 485.077585 | N24: 5559917 | O24: 485.077585 | P24: -1.418410114e-11
A25: 6115909 | B25: 609.428521 | E25: 6115909 | F25: 609.428521 | G25: 2.811268347e-11 | J25: 6115909 | K25: 474.195573 | N25: 6115909 | O25: 474.195573 | P25: 2.578148925e-11
A26: 6727500 | B26: 581.002503 | E26: 6727500 | F26: 581.002503 | G26: 9.71827868e-12 | J26: 6727500 | K26: 467.545521 | N26: 6727500 | O26: 467.545521 | P26: -2.036079777e-13
A27: 7400250 | B27: 553.909977 | E27: 7400250 | F27: 553.909977 | G27: -7.300913329e-12 | J27: 7400250 | K27: 460.986451 | N27: 7400250 | O27: 460.986451 | P27: -1.26382335e-11
A28: 8140275 | B28: 522.677965 | E28: 8140275 | F28: 522.677965 | G28: 3.371546107e-12 | J28: 8140275 | K28: 449.663421 | N28: 8140275 | O28: 449.663421 | P28: 3.431675066e-12
A29: 8954302 | B29: 489.660896 | E29: 8954302 | F29: 489.660896 | G29: 5.88030927e-12 | J29: 8954302 | K29: 437.403271 | N29: 8954302 | O29: 437.403271 | P29: 1.537995288e-13
A30: 9849733 | B30: 457.804699 | E30: 9849733 | F30: 457.804699 | G30: 7.877625934e-12 | J30: 9849733 | K30: 424.636343 | N30: 9849733 | O30: 424.636343 | P30: 1.67540222e-12
A31: 10834706 | B31: 428.680426 | E31: 10834706 | F31: 428.680426 | G31: 1.17267309e-12 | J31: 10834706 | K31: 411.877705 | N31: 10834706 | O31: 411.877705 | P31: 1.41003102e-12
A32: 11918177 | B32: 399.277161 | E32: 11918177 | F32: 399.277161 | G32: 1.820976708e-12 | J32: 11918177 | K32: 398.384794 | N32: 11918177 | O32: 398.384794 | P32: -4.138659416e-12
A33: 13109994 | B33: 369.930078 | E33: 13109994 | F33: 369.930078 | G33: 4.638473833e-12 | J33: 13109994 | K33: 381.182838 | N33: 13109994 | O33: 381.182838 | P33: 4.552467226e-12
A34: 14420994 | B34: 343.342624 | E34: 14420994 | F34: 343.342624 | G34: 5.129011853e-13 | J34: 14420994 | K34: 365.468957 | N34: 14420994 | O34: 365.468957 | P34: -2.419689981e-12
A35: 15863093 | B35: 316.969012 | E35: 15863093 | F35: 316.969012 | G35: 2.112499808e-12 | J35: 15863093 | K35: 346.97843 | N35: 15863093 | O35: 346.97843 | P35: 1.622883927e-12
A36: 17449402 | B36: 292.387661 | E36: 17449402 | F36: 292.387661 | G36: 2.029730003e-12 | J36: 17449402 | K36: 328.670097 | N36: 17449402 | O36: 328.670097 | P36: 8.465216425e-13
A37: 19194342 | B37: 270.947085 | E37: 19194342 | F37: 270.947085 | G37: 1.362674111e-12 | J37: 19194342 | K37: 310.814845 | N37: 19194342 | O37: 310.814845 | P37: -2.069238346e-13
A38: 21113777 | B38: 252.730237 | E38: 21113777 | F38: 252.730237 | G38: 1.693650005e-12 | J38: 21113777 | K38: 292.596771 | N38: 21113777 | O38: 292.596771 | P38: 2.337485647e-12
A39: 23225154 | B39: 238.419277 | E39: 23225154 | F39: 238.419277 | G39: 3.381905829e-15 | J39: 23225154 | K39: 279.257396 | N39: 23225154 | O39: 279.257396 | P39: 2.814998588e-13
A40: 25547670 | B40: 224.603022 | E40: 25547670 | F40: 224.603022 | G40: 5.895431813e-13 | J40: 25547670 | K40: 267.33541 | N40: 25547670 | O40: 267.33541 | P40: -1.394097734e-13
A41: 28102437 | B41: 211.621438 | E41: 28102437 | F41: 211.621438 | G41: -2.166600469e-13 | J41: 28102437 | K41: 253.672482 | N41: 28102437 | O41: 253.672482 | P41: -2.280697447e-13
A42: 30912681 | B42: 196.958273 | E42: 30912681 | F42: 196.958273 | G42: 0 | J42: 30912681 | K42: 237.330242 | N42: 30912681 | O42: 237.330242 | P42: 0
Q71: x

Sheet LO1238
A1: Calculate impedance of ferrite cored inductor
A3: Reference:
A4: A method for estimating the impedance of a ferrite cored toroidal inductor at RF
A6: Inputs:
A7: Al (nH for 1t) | B7: 1150
A8: N | B8: 9
A9: Cs (pF) | B9: 2.5
A11: Constants:
A12: Mix | B12: =Mix!B1 -> L15
A13: µi | B13: =Mix!B2 -> 1100
A15: Calculated values:
A16: 2*pi*N^2*Al | B16: =2*PI()*$B$8^2*$B$7*0.000000001 -> 0.0005852787114
A18: f (MHz) | B18: 1 | C18: 1.2 | D18: 1.8 | E18: 2 | F18: 2.5 | G18: 3 | H18: 3.5 | I18: 4 | J18: 4.5 | K18: 5 | L18: 5.5 | M18: 6 | N18: =M18+1 -> 7 | O18: 8 | P18: 9 | Q18: 10 | R18: 11 | S18: 12 | T18: 13 | U18: 14 | V18: 15 | W18: 16 | X18: 17 | Y18: 18 | Z18: 19 | AA18: 22 | AB18: 24 | AC18: 26 | AD18: 28 | AE18: 30
A19: µ'' | B19: =csinterpolate(CSTableU2,'LO1238'!B18*1000000) -> 44.589843 | C19: =csinterpolate(CSTableU2,'LO1238'!C18*1000000) -> 182.7797512 | D19: =csinterpolate(CSTableU2,'LO1238'!D18*1000000) -> 396.9673657 | E19: =csinterpolate(CSTableU2,'LO1238'!E18*1000000) -> 430.9904141 | F19: =csinterpolate(CSTableU2,'LO1238'!F18*1000000) -> 472.7272538 | G19: =csinterpolate(CSTableU2,'LO1238'!G18*1000000) -> 493.7636018 | H19: =csinterpolate(CSTableU2,'LO1238'!H18*1000000) -> 507.8344069 | I19: =csinterpolate(CSTableU2,'LO1238'!I18*1000000) -> 503.3491038 | J19: =csinterpolate(CSTableU2,'LO1238'!J18*1000000) -> 496.1646169 | K19: =csinterpolate(CSTableU2,'LO1238'!K18*1000000) -> 492.8572886 | L19: =csinterpolate(CSTableU2,'LO1238'!L18*1000000) -> 486.2094608 | M19: =csinterpolate(CSTableU2,'LO1238'!M18*1000000) -> 476.2172285 | N19: =csinterpolate(CSTableU2,'LO1238'!N18*1000000) -> 465.2174555 | O19: =csinterpolate(CSTableU2,'LO1238'!O18*1000000) -> 451.9334369 | P19: =csinterpolate(CSTableU2,'LO1238'!P18*1000000) -> 436.7383844 | Q19: =csinterpolate(CSTableU2,'LO1238'!Q18*1000000) -> 422.5912105 | R19: =csinterpolate(CSTableU2,'LO1238'!R18*1000000) -> 409.8739936 | S19: =csinterpolate(CSTableU2,'LO1238'!S18*1000000) -> 397.2511609 | T19: =csinterpolate(CSTableU2,'LO1238'!T18*1000000) -> 382.6878381 | U19: =csinterpolate(CSTableU2,'LO1238'!U18*1000000) -> 370.393172 | V19: =csinterpolate(CSTableU2,'LO1238'!V18*1000000) -> 358.1776825 | W19: =csinterpolate(CSTableU2,'LO1238'!W18*1000000) -> 345.2651971 | X19: =csinterpolate(CSTableU2,'LO1238'!X18*1000000) -> 333.5557639 | Y19: =csinterpolate(CSTableU2,'LO1238'!Y18*1000000) -> 322.9096108 | Z19: =csinterpolate(CSTableU2,'LO1238'!Z18*1000000) -> 312.7758427 | AA19: =csinterpolate(CSTableU2,'LO1238'!AA18*1000000) -> 286.2569817 | AB19: =csinterpolate(CSTableU2,'LO1238'!AB18*1000000) -> 275.2233475 | AC19: =csinterpolate(CSTableU2,'LO1238'!AC18*1000000) -> 264.9991716 | AD19: =csinterpolate(CSTableU2,'LO1238'!AD18*1000000) -> 254.2451025 | AE19: =csinterpolate(CSTableU2,'LO1238'!AE18*1000000) -> 242.7249136
A20: µ' | B20: =csinterpolate(CSTableU1,'LO1238'!B18*1000000) -> 1276.546112 | C20: =csinterpolate(CSTableU1,'LO1238'!C18*1000000) -> 1214.966309 | D20: =csinterpolate(CSTableU1,'LO1238'!D18*1000000) -> 1095.76993 | E20: =csinterpolate(CSTableU1,'LO1238'!E18*1000000) -> 1058.30068 | F20: =csinterpolate(CSTableU1,'LO1238'!F18*1000000) -> 937.0733858 | G20: =csinterpolate(CSTableU1,'LO1238'!G18*1000000) -> 844.3114327 | H20: =csinterpolate(CSTableU1,'LO1238'!H18*1000000) -> 797.0710469 | I20: =csinterpolate(CSTableU1,'LO1238'!I18*1000000) -> 743.2315029 | J20: =csinterpolate(CSTableU1,'LO1238'!J18*1000000) -> 708.1156273 | K20: =csinterpolate(CSTableU1,'LO1238'!K18*1000000) -> 674.7600416 | L20: =csinterpolate(CSTableU1,'LO1238'!L18*1000000) -> 644.6978275 | M20: =csinterpolate(CSTableU1,'LO1238'!M18*1000000) -> 615.7648917 | N20: =csinterpolate(CSTableU1,'LO1238'!N18*1000000) -> 569.9332988 | O20: =csinterpolate(CSTableU1,'LO1238'!O18*1000000) -> 528.6343188 | P20: =csinterpolate(CSTableU1,'LO1238'!P18*1000000) -> 487.9073769 | Q20: =csinterpolate(CSTableU1,'LO1238'!Q18*1000000) -> 453.0290197 | R20: =csinterpolate(CSTableU1,'LO1238'!R18*1000000) -> 424.0867814 | S20: =csinterpolate(CSTableU1,'LO1238'!S18*1000000) -> 397.1340944 | T20: =csinterpolate(CSTableU1,'LO1238'!T18*1000000) -> 372.4236084 | U20: =csinterpolate(CSTableU1,'LO1238'!U18*1000000) -> 351.4440528 | V20: =csinterpolate(CSTableU1,'LO1238'!V18*1000000) -> 332.4386813 | W20: =csinterpolate(CSTableU1,'LO1238'!W18*1000000) -> 314.6408875 | X20: =csinterpolate(CSTableU1,'LO1238'!X18*1000000) -> 298.824004 | Y20: =csinterpolate(CSTableU1,'LO1238'!Y18*1000000) -> 285.0511107 | Z20: =csinterpolate(CSTableU1,'LO1238'!Z18*1000000) -> 273.092468 | AA20: =csinterpolate(CSTableU1,'LO1238'!AA18*1000000) -> 246.2382046 | AB20: =csinterpolate(CSTableU1,'LO1238'!AB18*1000000) -> 233.6515829 | AC20: =csinterpolate(CSTableU1,'LO1238'!AC18*1000000) -> 222.1746689 | AD20: =csinterpolate(CSTableU1,'LO1238'!AD18*1000000) -> 212.1340591 | AE20: =csinterpolate(CSTableU1,'LO1238'!AE18*1000000) -> 201.3561057
A21: Rl | B21: =B19/$B$13*$B$16*B18*1000000 -> 23.72498714 | C21: 116.7022879 | D21: 380.187079 | E21: 458.6354803 | F21: 628.8118135 | G21: 788.1527034 | H21: 945.7148503 | I21: 1071.270963 | J21: 1187.977858 | K21: 1311.176722 | L21: 1422.840233 | M21: 1520.28985 | N21: 1732.702827 | O21: 1923.687415 | P21: 2091.384645 | Q21: 2248.487628 | R21: 2398.905228 | S21: 2536.392519 | T21: 2647.025074 | U21: 2759.059398 | V21: 2858.642352 | W21: 2939.292649 | X21: 3017.084082 | Y21: 3092.598342 | Z21: 3161.963455 | AA21: 3350.802348 | AB21: 3514.524353 | AC21: 3665.96156 | AD21: 3787.744443 | AE21: 3874.410672
A22: Xl | B22: =B20/$B$13*$B$16*B18*1000000 -> 679.2138758 | C22: 775.738817 | D22: 1049.450421 | E22: 1126.183379 | F22: 1246.475236 | G22: 1347.702293 | H22: 1484.345912 | I22: 1581.809368 | J22: 1695.456826 | K22: 1795.103126 | L22: 1886.639568 | M22: 1965.785903 | N22: 2122.717079 | O22: 2250.170275 | P22: 2336.414734 | Q22: 2410.438553 | R22: 2482.089649 | S22: 2535.645066 | T22: 2576.028114 | U22: 2617.907375 | V22: 2653.217496 | W22: 2678.583464 | X22: 2702.927796 | Y22: 2730.016583 | Z22: 2760.789952 | AA22: 2882.359581 | AB22: 2983.664669 | AC22: 3073.533365 | AD22: 3160.373967 | AE22: 3214.075694
A23: Yl | B23: =IMDIV(1,COMPLEX(B21,B22)) -> 0.0000513645304608521-0.00147049613192193i | C23: 0.000189639516547909-0.00126056426866103i | D23: 0.000305153397853889-0.000842330998529192i | E23: 0.00031017480531099-0.000761636910467935i | F23: 0.000322615700442072-0.000639511651325809i | G23: 0.000323346535604678-0.000552906645517528i | H23: 0.000305299821236454-0.000479183066079289i | I23: 0.00029351961296631-0.000433403022734884i | J23: 0.000277185070430571-0.000395592658825472i | K23: 0.000265335544636738-0.000363265040976883i | L23: 0.000254811962352086-0.000337872320050081i | M23: 0.000246177046931095-0.000318315200655441i | N23: 0.000230775133038831-0.000282720330680505i | O23: 0.000219502811126584-0.000256756215733605i | P23: 0.000212696374112097-0.000237616233569486i | Q23: 0.000206930436297737-0.000221834932631057i | R23: 0.000201326183833296-0.000208307369241615i | S23: 0.000197188472878288-0.000197130363147894i | T23: 0.000194025547250701-0.000188821507365399i | U23: 0.000190729187718995-0.00018097158311379i | V23: 0.000187927640255245-0.000174422974841957i | W23: 0.00018586354254307-0.000169377830353196i | X23: 0.000183871952453232-0.000164726138753249i | Y23: 0.000181734157867409-0.00016042732024521i | Z23: 0.000179453354794732-0.000156685245050657i | AA23: 0.000171520480586086-0.000147541886774239i | AB23: 0.000165357194752786-0.000140380424283069i | AC23: 0.00016018441582998-0.000134298229446354i | AD23: 0.000155650251351646-0.00012986963872679i | AE23: 0.000152888938680296-0.000126831320475348i
A24: Yc | B24: =COMPLEX(0,2*PI()*B18*1000000*$B$9*0.000000000001) -> 0.000015707963267949i | C24: 0.0000188495559215388i | D24: 0.0000282743338823081i | E24: 0.0000314159265358979i | F24: 0.0000392699081698724i | G24: 0.0000471238898038469i | H24: 0.0000549778714378214i | I24: 0.0000628318530717959i | J24: 0.0000706858347057703i | K24: 0.0000785398163397448i | L24: 0.0000863937979737193i | M24: 0.0000942477796076938i | N24: 0.000109955742875643i | O24: 0.000125663706143592i | P24: 0.000141371669411541i | Q24: 0.00015707963267949i | R24: 0.000172787595947439i | S24: 0.000188495559215388i | T24: 0.000204203522483337i | U24: 0.000219911485751286i | V24: 0.000235619449019234i | W24: 0.000251327412287183i | X24: 0.000267035375555132i | Y24: 0.000282743338823081i | Z24: 0.00029845130209103i | AA24: 0.000345575191894877i | AB24: 0.000376991118430775i | AC24: 0.000408407044966673i | AD24: 0.000439822971502571i | AE24: 0.000471238898038469i
A25: Z | B25: =IMDIV(1,IMSUM(B23,B24)) -> 24.2394492156038+686.529471157642i | C25: 120.190952029867+786.981933883745i | D25: 403.745213561813+1077.06971061369i | E25: 492.785958088736+1160.12855016596i | F25: 694.736907291086+1292.59081841258i | G25: 897.264681016838+1403.51280436817i | H25: 1117.6673937173+1552.96623619398i | I25: 1313.42346093575+1658.20901459749i | J25: 1519.68825432926+1781.32640260583i | K25: 1751.72036596937+1879.72921375805i | L25: 1988.06899324073+1962.06115125476i | M25: 2221.62707604748+2022.09854925727i | N25: 2776.91818892869+2078.87704346969i | O25: 3358.02036569607+2005.4928441878i | P25: 3902.48786869529+1765.86575874724i | Q25: 4401.51525155314+1377.37804769147i | R25: 4817.12040327563+849.879640080887i | S25: 5061.58461713987+221.644754984071i | T25: 5121.76989418054-406.045198991702i | U25: 5033.23730451975-1027.60239758465i | V25: 4811.03301309528-1566.65755581261i | W25: 4504.58267300304-1986.12735875374i | X25: 4152.85124399179-2310.711534064i | Y25: 3787.0346101916-2548.86038580151i | Z25: 3431.15691845281-2710.57394258383i | AA25: 2498.97019161134-2885.24918278998i | AB25: 1984.42233088716-2839.52292426943i | AC25: 1589.21482981748-2719.47675029112i | AD25: 1293.87156692521-2576.54453410589i | AE25: 1076.74630812856-2425.54883848104i
A26: R | B26: =IMREAL(B25) -> 24.23944922 | C26: 120.190952 | D26: 403.7452136 | E26: 492.7859581 | F26: 694.7369073 | G26: 897.264681 | H26: 1117.667394 | I26: 1313.423461 | J26: 1519.688254 | K26: 1751.720366 | L26: 1988.068993 | M26: 2221.627076 | N26: 2776.918189 | O26: 3358.020366 | P26: 3902.487869 | Q26: 4401.515252 | R26: 4817.120403 | S26: 5061.584617 | T26: 5121.769894 | U26: 5033.237305 | V26: 4811.033013 | W26: 4504.582673 | X26: 4152.851244 | Y26: 3787.03461 | Z26: 3431.156918 | AA26: 2498.970192 | AB26: 1984.422331 | AC26: 1589.21483 | AD26: 1293.871567 | AE26: 1076.746308
A27: X | B27: =IMAGINARY(B25) -> 686.5294712 | C27: 786.9819339 | D27: 1077.069711 | E27: 1160.12855 | F27: 1292.590818 | G27: 1403.512804 | H27: 1552.966236 | I27: 1658.209015 | J27: 1781.326403 | K27: 1879.729214 | L27: 1962.061151 | M27: 2022.098549 | N27: 2078.877043 | O27: 2005.492844 | P27: 1765.865759 | Q27: 1377.378048 | R27: 849.8796401 | S27: 221.644755 | T27: -406.045199 | U27: -1027.602398 | V27: -1566.657556 | W27: -1986.127359 | X27: -2310.711534 | Y27: -2548.860386 | Z27: -2710.573943 | AA27: -2885.249183 | AB27: -2839.522924 | AC27: -2719.47675 | AD27: -2576.544534 | AE27: -2425.548838
A28: |Z| | B28: =IMABS(B25) -> 686.9572517 | C28: 796.1070463 | D28: 1150.256214 | E28: 1260.450814 | F28: 1467.463933 | G28: 1665.812745 | H28: 1913.34381 | I28: 2115.35773 | J28: 2341.490154 | K28: 2569.417474 | L28: 2793.224352 | M28: 3004.082124 | N28: 3468.862117 | O28: 3911.304427 | P28: 4283.420764 | Q28: 4611.995967 | R28: 4891.517595 | S28: 5066.43516 | T28: 5137.83997 | U28: 5137.065743 | V28: 5059.689175 | W28: 4923.003854 | X28: 4752.42688 | Y28: 4564.90092 | Z28: 4372.647813 | AA28: 3817.003388 | AB28: 3464.22032 | AC28: 3149.786909 | AD28: 2883.172795 | AE28: 2653.80289
A32: Module | B32: Version | C32: Date
A33: CubicSpline | B33: =CubicSpline_version("v") -> 1.03 | C33: =CubicSpline_version("d") -> 2010-07-06
A35: Copyright: Owen Duffy 2010. All rights reserved.
